bitfinex/quotes_SOLUSD_20240925
["timestamp","ask_amount","ask_price","bid_price","bid_amount"]
[1727228390828,1023.65302413,154.0,153.99,74.37173469]
[1727228391140,1023.65302413,154.0,153.99,107.06776093]
[1727228391427,1023.65302413,154.0,153.99,80.82456174]
[1727228391608,1016.78192119,154.0,153.99,64.47654862]
[1727228392314,993.01192119,154.0,153.99,73.06623528]
[1727228392703,993.01192119,154.0,153.99,93.06623528]
[1727228393004,896.54873348,154.0,153.99,99.59823528]
[1727228393423,896.54873348,154.0,153.99,42.1915]
[1727228393606,896.29793348,154.0,153.99,42.1915]
[1727228394514,775.37294002,154.0,153.99,174.71252829]
[1727228394699,706.28475716,154.0,153.99,148.80005195]
[1727228394903,706.28475716,154.0,153.99,166.99515335]
[1727228394904,663.56475716,154.0,153.99,166.99515335]
[1727228395431,656.19395716,154.0,153.99,143.52715335]
[1727228396024,656.19395716,154.0,153.99,113.21826935]
[1727228396421,649.45112181,154.0,153.99,67.30579301]
[1727228401541,649.45112181,154.0,153.92,19.99418492]
[1727228401830,649.45112181,154.0,153.92,13.46218492]
[1727228402030,15.3097,153.99,153.91,16.27607172]
[1727228402225,15.3097,153.99,153.92,1.29871084]
[1727228402418,15.3097,153.99,153.91,16.27607172]
[1727228402938,6.0925,153.98,153.91,16.27607172]
[1727228403511,6.0925,153.98,153.92,1.298804]
[1727228403813,6.0925,153.98,153.91,16.27607172]
[1727228404015,6.0925,153.98,153.92,1.29881304]
[1727228404216,6.0925,153.98,153.92,7.21797575]
[1727228404438,6.0925,153.98,153.93,1.29868685]
[1727228405318,6.0925,153.98,153.91,16.27607172]
[1727228405729,6.0925,153.98,153.92,1.29875738]
[1727228405915,6.0925,153.98,153.91,16.27607172]
[1727228407407,6.0925,153.98,153.91,7.21797575]
[1727228408420,6.0925,153.98,153.92,1.29875961]
[1727228408631,15.3097,153.99,153.95,25.91247634]
[1727228408821,649.45112181,154.0,153.95,25.91247634]
[1727228409013,649.45112181,154.0,153.96,1.29845294]
[1727228409424,649.45112181,154.0,153.95,25.91247634]
[1727228409622,649.45112181,154.0,153.96,50.0]
[1727228409917,649.45112181,154.0,153.96,20.0]
[1727228410723,649.45112181,154.0,153.92,25.91247634]
[1727228410934,649.45112181,154.0,153.93,1.29847227]
[1727228411117,649.45112181,154.0,153.93,20.0]
[1727228411321,649.45112181,154.0,153.97,45.91247634]
[1727228412024,649.45112181,154.0,153.92,45.91247634]
[1727228412241,649.45112181,154.0,153.94,20.0]
[1727228412436,649.45112181,154.0,153.95,25.91247634]
[1727228413035,649.45112181,154.0,153.93,20.0]
[1727228413513,6.0925,153.99,153.91,56.38952271]
[1727228414943,15.0431,153.98,153.91,56.38952271]
[1727228415527,15.0431,153.98,153.86,25.91247634]
[1727228415836,23.776884,153.97,153.87,1.29910464]
[1727228416043,15.0431,153.98,153.87,7.21797575]
[1727228416424,23.776884,153.97,153.87,7.21797575]
[1727228417342,15.0431,153.98,153.87,7.21797575]
[1727228418634,15.0431,153.98,153.89,25.91247634]
[1727228418820,15.0431,153.98,153.89,33.13045209]
[1727228419844,15.0431,153.98,153.9,7.21797575]
[1727228420350,15.0431,153.98,153.92,25.91247634]
[1727228420517,649.45112181,154.0,153.96,5.80031368]
[1727228422832,6.2717,153.99,153.96,5.80031368]
[1727228423032,6.2717,153.99,153.89,25.91247634]
[1727228423033,15.0431,153.98,153.89,25.91247634]
[1727228423629,15.0431,153.98,153.86,33.13045209]
[1727228424841,23.776884,153.97,153.86,7.21797575]
[1727228425849,23.776884,153.97,153.85,56.41151407]
[1727228426542,15.0431,153.98,153.85,63.62948982]
[1727228426951,23.776884,153.97,153.85,63.62948982]
[1727228427162,23.776884,153.97,153.85,63.14708774]
[1727228427453,15.0431,153.98,153.85,63.14708774]
[1727228427951,15.0431,153.98,153.86,25.91247634]
[1727228429242,15.0431,153.98,153.87,20.0]
[1727228429440,15.0431,153.98,153.89,25.91247634]
[1727228429747,15.0431,153.98,153.9,5.47492123]
[1727228430144,15.0431,153.98,153.91,20.0]
[1727228430739,15.0431,153.98,153.85,119.25710037]
[1727228430740,15.0431,153.98,153.85,61.53972543]
[1727228430949,6.2381,153.97,153.84,0.2152143]
[1727228431157,30.272084,153.96,153.84,0.2152143]
[1727228431365,23.776884,153.94,153.84,0.2152143]
[1727228432143,30.272984,153.94,153.84,0.2152143]
[1727228433957,39.377984,153.92,153.84,0.2152143]
[1727228436159,15.6011,153.92,153.84,0.2152143]
[1727228437376,15.6011,153.92,153.86,20.0]
[1727228439359,15.6011,153.92,153.88,20.0]
[1727228439757,15.6011,153.92,153.87,55.92184127]
[1727228441258,15.6011,153.92,153.85,55.92911093]
[1727228442360,23.776884,153.91,153.84,0.2152143]
[1727228447689,6.2381,153.88,153.84,0.2152143]
[1727228449182,23.776884,153.87,153.84,0.2152143]
[1727228450279,6.2381,153.88,153.84,0.2152143]
[1727228450597,23.776884,153.87,153.84,0.2152143]
[1727228450967,23.776884,153.85,153.79,55.95093125]
[1727228451196,15.6011,153.86,153.79,55.95093125]
[1727228451990,23.776884,153.85,153.79,55.95093125]
[1727228452390,23.776884,153.85,153.78,1.48210942]
[1727228452598,23.776884,153.83,153.78,0.3541223]
[1727228453976,23.776884,153.81,153.78,0.3541223]
[1727228455382,23.776884,153.81,153.73,0.0729187]
[1727228455982,15.6011,153.82,153.73,0.0729187]
[1727228456178,15.6011,153.82,153.73,1.37352685]
[1727228456378,15.6011,153.82,153.73,0.0729187]
[1727228457194,15.6011,153.82,153.76,55.96184779]
[1727228457585,15.6011,153.82,153.77,20.0]
[1727228458094,15.6011,153.82,153.78,1.30032908]
[1727228459596,15.6011,153.82,153.77,20.0]
[1727228459775,15.6011,153.82,153.79,1.30021806]
[1727228460580,15.6011,153.82,153.77,20.0]
[1727228461298,23.776884,153.81,153.74,55.96912785]
[1727228464086,6.2519,153.77,153.7,0.4626546]
[1727228464315,30.028784,153.75,153.7,0.4626546]
[1727228465380,39.185284,153.73,153.64,0.427041]
[1727228465581,23.776884,153.72,153.64,0.427041]
[1727228465810,23.776884,153.76,153.65,25.91247634]
[1727228465988,23.776884,153.76,153.64,6.00774749]
[1727228465989,23.776884,153.74,153.64,0.427041]
[1727228467494,23.776884,153.71,153.64,0.427041]
[1727228468799,21.6603,153.77,153.65,27.21383106]
[1727228469186,21.6603,153.77,153.66,20.0]
[1727228469407,21.6603,153.77,153.67,1.300892]
[1727228469912,21.6603,153.77,153.66,20.0]
[1727228470109,21.6603,153.77,153.68,1.30088211]
[1727228470288,21.6603,153.77,153.64,0.427041]
[1727228471491,16.2505,153.85,153.64,0.427041]
[1727228471492,21.6603,153.75,153.64,0.427041]
[1727228471701,28.1644,153.75,153.64,0.427041]
[1727228471899,15.4084,153.74,153.64,0.427041]
[1727228472207,12.7569,153.73,153.64,0.427041]
[1727228472412,16.2564,153.79,153.64,0.427041]
[1727228472413,6.2519,153.71,153.64,0.427041]
[1727228472792,15.4084,153.7,153.64,0.427041]
[1727228475296,22.5796,153.83,153.68,20.0]
[1727228475805,23.02257329,153.87,153.69,1.30094274]
[1727228476120,22.6088,153.81,153.69,1.30094274]
[1727228476818,22.6088,153.81,153.68,20.0]
[1727228477019,22.6088,153.81,153.69,1.30101057]
[1727228477517,29.1103,153.81,153.68,20.0]
[1727228479710,6.5019,153.8,153.68,20.0]
[1727228480221,6.5019,153.8,153.65,20.0]
[1727228480523,6.5019,153.8,153.66,1.30105453]
[1727228480824,29.1103,153.81,153.66,1.30105453]
[1727228481205,6.5021,153.8,153.65,20.0]
[1727228481605,6.5025,153.79,153.64,26.33951734]
[1727228481807,13.0335,153.77,153.64,0.427041]
[1727228481999,16.0789,153.76,153.64,0.427041]
[1727228482619,22.5825,153.76,153.64,0.427041]
[1727228483024,16.0789,153.76,153.64,0.427041]
[1727228483225,16.0789,153.76,153.65,1.30142336]
[1727228483715,22.5825,153.76,153.65,1.30142336]
[1727228483918,22.5825,153.76,153.64,0.4943779]
[1727228484704,6.5045,153.74,153.64,0.4943779]
[1727228484907,6.505,153.73,153.64,0.4943779]
[1727228485217,6.5044,153.75,153.64,0.4943779]
[1727228485412,16.0789,153.72,153.64,0.4943779]
[1727228485620,6.507,153.68,153.64,0.4943779]
[1727228485831,16.0789,153.66,153.64,0.4943779]
[1727228488504,16.0789,153.66,153.6,0.1085323]
[1727228488505,22.5888,153.61,153.6,0.1085323]
[1727228488710,22.5888,153.61,153.58,0.3320792]
[1727228488927,16.0789,153.61,153.58,0.3320792]
[1727228489312,22.5889,153.61,153.58,0.3320792]
[1727228490329,6.2408,153.6,153.54,0.0729187]
[1727228490622,6.5108,153.59,153.54,0.0729187]
[1727228491030,6.5113,153.58,153.54,0.0729187]
[1727228491240,6.5117,153.57,153.54,0.0729187]
[1727228491419,22.6608,153.55,153.54,0.0729187]
[1727228491627,6.2408,153.52,153.45,0.4049979]
[1727228491813,6.5148,153.5,153.45,0.4049979]
[1727228492229,6.2408,153.52,153.45,0.4049979]
[1727228492426,6.5155,153.48,153.45,0.4049979]
[1727228492635,6.2408,153.52,153.45,0.4049979]
[1727228492838,6.2408,153.52,153.45,0.1515369]
[1727228493021,20.0,153.51,153.45,0.1515369]
[1727228493416,16.1483,153.46,153.42,0.1085323]
[1727228494016,50.0,153.62,153.43,25.91247634]
[1727228494244,50.0,153.62,153.42,0.1085323]
[1727228494245,22.3891,153.63,153.46,25.91247634]
[1727228494551,22.3891,153.63,153.42,0.1085323]
[1727228494552,22.3891,153.63,153.47,20.65061844]
[1727228494753,28.8984,153.63,153.47,36.65583632]
[1727228494922,28.8984,153.63,153.47,10.74335998]
[1727228494923,22.3891,153.63,153.47,10.74335998]
[1727228495126,22.3891,153.63,153.45,20.0]
[1727228495437,28.8984,153.63,153.46,1.30290297]
[1727228495616,28.8984,153.63,153.45,20.0]
[1727228495617,22.3891,153.63,153.45,20.0]
[1727228495820,28.8984,153.63,153.47,25.91247634]
[1727228496016,22.3891,153.63,153.45,20.0]
[1727228496246,6.5102,153.61,153.45,20.0]
[1727228496453,6.5102,153.61,153.46,1.30299975]
[1727228496633,6.5102,153.61,153.45,20.0]
[1727228497018,6.511,153.59,153.44,56.78090667]
[1727228497327,22.3891,153.63,153.44,56.78090667]
[1727228497328,6.5115,153.58,153.44,56.78090667]
[1727228497534,6.78292554,153.59,153.44,56.78090667]
[1727228497745,6.78292554,153.59,153.45,1.3032182]
[1727228497922,6.78292554,153.59,153.45,21.3032182]
[1727228498243,6.5097,153.62,153.45,20.0]
[1727228498442,6.78161888,153.61,153.46,1.30288606]
[1727228498744,6.78161888,153.61,153.45,20.0]
[1727228498948,6.78161888,153.61,153.46,1.30284541]
[1727228499155,6.78161888,153.61,153.45,20.0]
[1727228499518,6.78161888,153.61,153.47,42.43739529]
[1727228499747,22.3891,153.63,153.5,42.43739529]
[1727228499924,29.16836397,153.63,153.5,42.43739529]
[1727228500126,29.16836397,153.63,153.48,26.3201]
[1727228500320,29.16836397,153.63,153.49,1.3027779]
[1727228500544,29.16836397,153.63,153.49,1.30261723]
[1727228500752,29.16836397,153.63,153.48,26.3201]
[1727228500960,29.16836397,153.63,153.48,20.0]
[1727228501244,6.5102,153.61,153.48,1.30278484]
[1727228501468,6.5102,153.61,153.47,20.0]
[1727228501832,6.5102,153.61,153.48,1.30283321]
[1727228502150,6.5105,153.6,153.45,20.0]
[1727228502349,29.16836397,153.63,153.44,63.10100667]
[1727228502350,6.5109,153.59,153.44,63.10100667]
[1727228503446,6.5118,153.57,153.44,63.10100667]
[1727228503655,6.5118,153.57,153.45,1.30311661]
[1727228504037,29.16836397,153.63,153.42,0.1085323]
[1727228504038,6.5121,153.56,153.42,0.1085323]
[1727228504250,48.72836397,153.63,153.42,1.41169788]
[1727228504251,6.5109,153.59,153.42,1.41169788]
[1727228504430,29.16836397,153.63,153.42,51.8702936]
[1727228504431,6.5106,153.6,153.42,51.8702936]
[1727228504753,6.5106,153.6,153.42,50.56712802]
[1727228504963,42.43906016,153.61,153.45,42.43906016]
[1727228505339,48.94906016,153.61,153.45,42.43906016]
[1727228505641,42.43906016,153.61,153.45,42.43906016]
[1727228506740,42.43906016,153.61,153.46,20.0]
[1727228507239,48.94906016,153.61,153.46,20.0]
[1727228508138,29.16836397,153.63,153.49,6.0745]
[1727228508438,22.3891,153.63,153.5,1.30250622]
[1727228508633,22.3891,153.63,153.51,42.43906016]
[1727228508848,22.3891,153.63,153.52,1.30238474]
[1727228509443,22.582,153.67,153.54,42.43906016]
[1727228509639,22.582,153.67,153.55,1.30221403]
[1727228509838,22.582,153.67,153.54,42.43906016]
[1727228510039,22.582,153.67,153.55,1.30210966]
[1727228510535,0.0729187,153.68,153.55,1.30210966]
[1727228510536,0.0729187,153.68,153.57,42.43906016]
[1727228511236,0.0729187,153.68,153.58,21.30185188]
[1727228511437,0.0729187,153.68,153.58,26.0745]
[1727228511837,0.0729187,153.68,153.59,1.30176712]
[1727228512359,0.0729187,153.68,153.58,26.0745]
[1727228512762,0.0729187,153.68,153.59,1.30176738]
[1727228513242,0.0729187,153.68,153.58,26.0745]
[1727228513441,0.0729187,153.68,153.57,42.43906016]
[1727228513442,42.51197886,153.68,153.56,38.85044042]
[1727228513866,6.5078,153.66,153.56,38.85044042]
[1727228514076,6.5086,153.65,153.53,6.0745]
[1727228514361,6.5085,153.65,153.53,6.0745]
[1727228514545,6.5085,153.65,153.54,1.30226982]
[1727228514872,6.5085,153.65,153.51,38.86309447]
[1727228514873,23.776884,153.63,153.51,38.86309447]
[1727228515542,23.776884,153.63,153.52,1.30244367]
[1727228515741,23.776884,153.63,153.51,81.30215463]
[1727228516479,30.285584,153.64,153.51,81.30215463]
[1727228517245,30.285584,153.64,153.52,1.30228407]
[1727228517246,23.776884,153.64,153.52,1.30228407]
[1727228517666,23.776884,153.64,153.52,21.30228407]
[1727228518347,23.776884,153.64,153.52,47.38370251]
[1727228518855,6.5074,153.67,153.52,47.38370251]
[1727228519053,26.15433714,153.68,153.52,47.38370251]
[1727228519254,32.66153714,153.68,153.55,26.08141844]
[1727228519467,6.5801187,153.68,153.55,26.08141844]
[1727228519977,26.08141844,153.67,153.53,1.30201393]
[1727228520143,6.5086,153.65,153.53,1.30201393]
[1727228520343,6.5087,153.64,153.52,46.08141844]
[1727228520863,23.776884,153.62,153.51,38.86309447]
[1727228521780,23.776884,153.61,153.51,38.86309447]
[1727228522090,23.776884,153.61,153.52,1.30253361]
[1727228522566,23.776884,153.62,153.52,1.30253361]
[1727228522765,23.776884,153.63,153.52,1.30253361]
[1727228523175,23.776884,153.63,153.52,27.38395205]
[1727228523378,23.776884,153.64,153.52,27.38395205]
[1727228523566,23.776884,153.64,153.52,26.08141844]
[1727228523771,30.285584,153.64,153.52,26.08141844]
[1727228524877,23.776884,153.64,153.52,26.08141844]
[1727228525076,23.776884,153.62,153.51,38.86309447]
[1727228525454,23.776884,153.62,153.52,1.30239863]
[1727228525654,23.776884,153.62,153.51,38.86309447]
[1727228525655,30.286484,153.62,153.51,38.86309447]
[1727228526863,71.78920244,153.62,153.5,16.497]
[1727228527186,23.776884,153.58,153.49,6.0745]
[1727228527481,23.776884,153.58,153.46,55.43435676]
[1727228527660,23.776884,153.55,153.46,55.43435676]
[1727228527992,23.776884,153.53,153.45,6.5754]
[1727228528171,23.776884,153.53,153.41,16.5586]
[1727228528172,23.776884,153.51,153.41,45.46129253]
[1727228528571,23.776884,153.52,153.41,6.5754]
[1727228528982,6.5143,153.51,153.41,6.5754]
[1727228529162,6.5151,153.49,153.38,38.89603359]
[1727228529475,26.08141844,153.47,153.36,12.45152629]
[1727228529787,6.5157,153.48,153.37,1.3036413]
[1727228530169,6.5151,153.49,153.36,12.45152629]
[1727228530366,6.5145,153.51,153.36,38.53294473]
[1727228530565,6.5147,153.5,153.36,38.53294473]
[1727228530970,23.776884,153.49,153.37,1.30362176]
[1727228531173,30.292384,153.48,153.36,38.53294473]
[1727228531491,23.776884,153.48,153.36,6.6483187]
[1727228531789,32.59901844,153.43,153.36,0.0729187]
[1727228531993,49.85830244,153.43,153.36,0.0729187]
[1727228533592,56.37590244,153.43,153.36,0.0729187]
[1727228533975,30.294484,153.43,153.36,0.0729187]
[1727228534389,23.776884,153.43,153.36,0.0729187]
[1727228535197,6.5157,153.48,153.36,0.0729187]
[1727228535400,38.2147,153.53,153.36,0.0729187]
[1727228535401,20.0,153.52,153.36,0.0729187]
[1727228535695,6.5163,153.46,153.36,0.0729187]
[1727228535891,20.0,153.52,153.36,0.0729187]
[1727228536109,6.5151,153.49,153.36,1.37673247]
[1727228536402,20.0,153.52,153.36,0.0729187]
[1727228536607,6.5155,153.48,153.36,0.0729187]
[1727228536811,20.0,153.52,153.36,0.0729187]
[1727228537106,6.77127545,153.51,153.38,20.0]
[1727228537405,21.9309,153.53,153.43,26.16187458]
[1727228537602,253.7,153.57,153.44,1.30325989]
[1727228537984,253.7,153.57,153.43,26.16187458]
[1727228538185,6.5128,153.55,153.43,26.16187458]
[1727228539685,253.7,153.57,153.41,6.1455]
[1727228539986,6.5134,153.53,153.41,6.1455]
[1727228540189,6.514,153.52,153.41,6.1455]
[1727228540583,6.5148,153.5,153.41,6.1455]
[1727228540787,23.776884,153.49,153.41,6.1455]
[1727228541204,23.776884,153.49,153.38,45.11324383]
[1727228541517,35.8413,153.55,153.38,46.4170255]
[1727228541518,23.776884,153.47,153.38,46.4170255]
[1727228541807,23.776884,153.47,153.38,25.11324383]
[1727228542005,30.292784,153.47,153.36,22.4393187]
[1727228542316,6.5173,153.44,153.36,22.4393187]
[1727228542495,23.776884,153.43,153.36,22.4393187]
[1727228542898,23.776884,153.43,153.36,0.0729187]
[1727228543195,30.294484,153.43,153.36,0.0729187]
[1727228543841,6.5188,153.41,153.36,0.0729187]
[1727228544121,6.5189,153.4,153.36,0.0729187]
[1727228546118,30.295784,153.4,153.36,0.0729187]
[1727228546320,23.776884,153.4,153.36,0.0729187]
[1727228546933,20.0,153.46,153.36,0.0729187]
[1727228547105,6.5189,153.4,153.36,0.0729187]
[1727228547429,20.0,153.44,153.36,0.0729187]
[1727228547598,6.5201,153.37,153.36,0.0729187]
[1727228549226,6.5197,153.38,153.36,0.0729187]
[1727228549627,23.776884,153.37,153.36,0.0729187]
[1727228550333,6.5188,153.41,153.36,0.0729187]
[1727228550519,6.76565096,153.41,153.36,0.0729187]
[1727228550825,13.28425096,153.41,153.36,0.0729187]
[1727228551603,6.5189,153.4,153.36,0.0729187]
[1727228551830,23.776884,153.39,153.36,0.0729187]
[1727228553220,23.776884,153.4,153.36,0.0729187]
[1727228553517,23.776884,153.37,153.36,0.0729187]
[1727228554318,23.776884,153.37,153.36,0.2227059]
[1727228554744,30.296984,153.37,153.36,0.2227059]
[1727228554903,23.776884,153.37,153.36,0.2227059]
[1727228556624,6.76565096,153.41,153.36,0.2227059]
[1727228556938,58.83308291,153.47,153.36,0.2227059]
[1727228557225,6.518,153.42,153.36,0.2227059]
[1727228558225,6.5189,153.4,153.36,0.2227059]
[1727228558524,39.56,153.46,153.36,0.2227059]
[1727228558728,23.776884,153.39,153.36,0.2227059]
[1727228559031,23.776884,153.4,153.36,0.2227059]
[1727228559325,23.776884,153.41,153.36,0.2227059]
[1727228560123,23.776884,153.42,153.36,0.2227059]
[1727228560728,6.76513344,153.43,153.36,0.2227059]
[1727228560907,13.28273344,153.43,153.36,0.2227059]
[1727228561109,6.5181,153.42,153.36,0.2227059]
[1727228562333,23.776884,153.41,153.36,0.2227059]
[1727228563114,23.776884,153.42,153.36,0.2227059]
[1727228563511,30.294984,153.42,153.36,0.2227059]
[1727228563718,23.776884,153.42,153.36,0.2227059]
[1727228564944,30.294984,153.42,153.36,0.2227059]
[1727228565411,23.776884,153.42,153.36,0.2227059]
[1727228565826,30.295284,153.42,153.36,0.2227059]
[1727228566035,6.5187,153.41,153.36,0.2227059]
[1727228566237,23.776884,153.4,153.36,0.2227059]
[1727228566442,23.776884,153.39,153.36,0.2227059]
[1727228567316,30.296184,153.39,153.36,0.2227059]
[1727228567632,20.0,153.38,153.36,0.2227059]
[1727228567829,30.296984,153.37,153.36,0.2227059]
[1727228568026,23.776884,153.37,153.36,0.2227059]
[1727228569347,6.76513344,153.43,153.36,0.2227059]
[1727228569636,6.5185,153.41,153.36,0.2227059]
[1727228570833,23.776884,153.4,153.36,0.2227059]
[1727228571039,30.295784,153.4,153.36,0.2227059]
[1727228572012,23.776884,153.4,153.36,0.2227059]
[1727228572340,23.776884,153.37,153.36,0.2227059]
[1727228574843,6.5185,153.41,153.36,0.2227059]
[1727228575228,6.5189,153.4,153.36,0.2227059]
[1727228576043,6.76513344,153.43,153.36,0.2227059]
[1727228576248,13.1018,153.48,153.36,0.2227059]
[1727228576414,6.5151,153.49,153.37,27.46713083]
[1727228576619,6.5151,153.49,153.38,1.30365938]
[1727228576940,16.5902,153.5,153.36,0.2227059]
[1727228577115,6.5163,153.46,153.36,0.2227059]
[1727228577316,6.5163,153.46,153.36,1.5266205]
[1727228577626,6.5159,153.47,153.36,1.5266205]
[1727228577827,16.5902,153.5,153.37,26.16338572]
[1727228578143,6.5155,153.48,153.38,1.30368324]
[1727228578345,6.5151,153.49,153.39,1.30362961]
[1727228578637,6.5146,153.5,153.39,1.30362961]
[1727228579024,6.5863,153.52,153.38,20.0]
[1727228579229,26.16338572,153.51,153.37,26.16338572]
[1727228579537,6.5158,153.48,153.38,1.30379999]
[1727228579735,6.5159,153.47,153.36,20.2227059]
[1727228580442,23.776884,153.46,153.37,1.30380093]
[1727228581443,23.776884,153.47,153.36,20.2227059]
[1727228581750,30.293184,153.47,153.36,20.2227059]
[1727228583145,6.5168,153.45,153.36,20.2227059]
[1727228583331,23.776884,153.39,153.36,0.2227059]
[1727228583535,23.776884,153.45,153.36,0.2227059]
[1727228584050,23.776884,153.45,153.36,1.52659311]
[1727228584354,23.776884,153.46,153.36,26.3666912]
[1727228584540,23.776884,153.46,153.37,1.3038029]
[1727228585553,23.776884,153.47,153.37,1.3038029]
[1727228585854,23.776884,153.49,153.37,1.3038029]
[1727228586353,23.776884,153.47,153.37,1.3038029]
[1727228586654,23.776884,153.47,153.36,26.3666912]
[1727228588139,23.776884,153.47,153.37,1.30376032]
[1727228588655,23.776884,153.47,153.38,1.30370706]
[1727228589055,23.776884,153.47,153.36,26.3666912]
[1727228589358,23.776884,153.47,153.37,1.30370878]
[1727228589735,23.776884,153.47,153.36,26.3666912]
[1727228590344,23.776884,153.47,153.37,1.30370908]
[1727228590830,6.5151,153.49,153.37,1.30370908]
[1727228591035,15.2642944,153.54,153.39,26.1439853]
[1727228591231,15.2642944,153.54,153.42,26.1439853]
[1727228591232,6.5134,153.53,153.42,26.1439853]
[1727228591432,0.2130944,153.54,153.43,1.3032221]
[1727228592167,0.2130944,153.54,153.42,26.1439853]
[1727228592344,6.7260944,153.54,153.42,26.1439853]
[1727228593633,0.2130944,153.54,153.43,21.30311131]
[1727228593840,0.2130944,153.54,153.43,20.0]
[1727228594036,0.2130944,153.54,153.45,26.1439853]
[1727228594241,0.2130944,153.54,153.46,1.3030362]
[1727228594545,0.2130944,153.54,153.48,26.1439853]
[1727228594743,0.2130944,153.54,153.49,1.30274838]
[1727228594945,0.2130944,153.54,153.51,26.1439853]
[1727228595860,0.2130944,153.54,153.52,1.30259646]
[1727228596064,0.2130944,153.54,153.51,26.1439853]
[1727228596940,0.2130944,153.54,153.48,46.1439853]
[1727228597255,0.2130944,153.54,153.48,1.30259736]
[1727228597460,0.2130944,153.54,153.47,20.0]
[1727228597673,0.2130944,153.54,153.49,20.0]
[1727228599653,0.2130944,153.54,153.47,20.0]
[1727228599850,0.2130944,153.54,153.48,1.30272334]
[1727228600170,0.2130944,153.54,153.47,20.0]
[1727228600351,23.9899784,153.54,153.46,22.357]
[1727228600551,0.2130944,153.54,153.46,22.357]
[1727228600766,23.776884,153.52,153.46,6.4425]
[1727228601071,23.776884,153.52,153.47,1.30308777]
[1727228601261,23.776884,153.52,153.46,6.4425]
[1727228601465,23.776884,153.52,153.47,1.30299315]
[1727228602246,0.2130944,153.54,153.46,6.4425]
[1727228603879,23.776884,153.53,153.42,48.5009853]
[1727228604747,30.290184,153.53,153.42,48.5009853]
[1727228605272,30.290184,153.53,153.43,20.0]
[1727228605452,23.776884,153.53,153.43,20.0]
[1727228605652,30.5029784,153.54,153.44,1.30320205]
[1727228605876,23.9899784,153.54,153.44,1.30320205]
[1727228606083,23.9899784,153.54,153.43,20.0]
[1727228607762,6.5133,153.53,153.43,20.0]
[1727228607965,23.776884,153.52,153.42,48.5009853]
[1727228609573,0.2130944,153.54,153.45,26.1439853]
[1727228609780,6.5134,153.53,153.43,20.0]
[1727228609953,6.5138,153.52,153.42,48.5009853]
[1727228610159,0.2130944,153.54,153.42,48.5009853]
[1727228610662,6.5142,153.51,153.42,48.5009853]
[1727228610872,23.776884,153.5,153.39,26.1439853]
[1727228611067,6.5154,153.49,153.4,20.0]
[1727228611269,30.292384,153.48,153.39,26.1439853]
[1727228611473,30.291884,153.49,153.39,26.1439853]
[1727228611777,30.291884,153.49,153.4,1.30353601]
[1727228612358,30.291884,153.49,153.4,17.63636664]
[1727228612558,30.291884,153.49,153.4,16.33283063]
[1727228612977,23.776884,153.49,153.4,16.33283063]
[1727228613284,23.776884,153.49,153.38,21.3547872]
[1727228613285,23.776884,153.46,153.38,37.68761783]
[1727228613575,23.776884,153.47,153.39,1.3036533]
[1727228613789,23.776884,153.47,153.4,16.33283063]
[1727228614084,15.6649,153.49,153.42,16.33283063]
[1727228614085,23.776884,153.48,153.42,16.33283063]
[1727228615486,23.776884,153.48,153.42,17.63623821]
[1727228615663,23.776884,153.48,153.42,16.33283063]
[1727228616473,0.1691754,153.52,153.44,16.33283063]
[1727228616674,0.1691754,153.52,153.46,16.33283063]
[1727228617062,0.1691754,153.52,153.48,16.33283063]
[1727228617268,0.1691754,153.52,153.5,16.33283063]
[1727228618188,0.1691754,153.52,153.51,1.30277194]
[1727228618683,0.1691754,153.52,153.5,16.33283063]
[1727228618984,0.1691754,153.52,153.48,36.33283063]
[1727228620976,0.1691754,153.52,153.49,1.30277775]
[1727228621790,0.1691754,153.52,153.48,16.33283063]
[1727228622383,0.1691754,153.52,153.48,17.63566225]
[1727228622986,0.1691754,153.52,153.48,16.33283063]
[1727228624495,0.1691754,153.52,153.46,6.0864]
[1727228624496,0.1691754,153.52,153.46,22.41923063]
[1727228626285,23.9460594,153.52,153.44,45.46108588]
[1727228626583,23.9460594,153.52,153.44,16.33283063]
[1727228626790,30.4598594,153.52,153.42,16.33283063]
[1727228627283,23.9460594,153.52,153.42,16.33283063]
[1727228627782,23.9460594,153.52,153.43,1.30328152]
[1727228628281,0.1691754,153.52,153.51,16.33283063]
[1727228629569,0.1691754,153.52,153.49,16.33283063]